bitfinex-derivatives/quotes_SOLF0:USTF0_20250903
["timestamp","ask_amount","ask_price","bid_price","bid_amount"]
[1756877125218,7.84,209.33,209.28,1.75408741]
[1756877125824,7.84,209.34,209.3,1.75408741]
[1756877126324,5.3181,209.35,209.3,1.75408741]
[1756877127421,7.84,209.34,209.32,1.75408741]
[1756877127724,7.84,209.36,209.32,1.75408741]
[1756877127923,5.3181,209.37,209.32,1.75408741]
[1756877128526,7.84,209.36,209.32,1.75408741]
[1756877129022,5.3181,209.37,209.32,1.75408741]
[1756877129517,7.84,209.36,209.3,1.75408741]
[1756877129726,7.84,209.34,209.3,1.75408741]
[1756877129921,5.3181,209.35,209.27,7.93]
[1756877130116,5.3181,209.35,209.3,1.75408741]
[1756877130117,7.84,209.34,209.3,1.75408741]
[1756877130317,13.1581,209.34,209.29,1.75408741]
[1756877130626,7.84,209.31,209.25,1.75408741]
[1756877131523,13.1581,209.31,209.25,1.75408741]
[1756877135532,13.1581,209.31,209.2,7.93]
[1756877135833,5.3181,209.31,209.26,1.75408741]
[1756877136131,13.1581,209.3,209.22,1.75408741]
[1756877136332,7.84,209.28,209.18,7.93]
[1756877136526,7.84,209.3,209.25,1.75408741]
[1756877136726,5.3181,209.31,209.25,1.75408741]
[1756877137135,7.84,209.31,209.25,1.75408741]
[1756877137434,13.1581,209.31,209.23,1.75408741]
[1756877137634,5.3181,209.3,209.23,1.75408741]
[1756877137833,7.84,209.29,209.23,1.75408741]
[1756877138235,5.3181,209.32,209.25,1.75408741]
[1756877138434,7.84,209.31,209.25,1.75408741]
[1756877139435,7.84,209.31,209.24,1.75408741]
[1756877141431,14.91218741,209.31,209.23,1.75408741]
[1756877141627,7.85,209.29,209.23,1.75408741]
[1756877143236,7.85,209.29,209.25,1.75408741]
[1756877143931,7.85,209.33,209.26,7.25]
[1756877144131,7.85,209.33,209.27,1.75408741]
[1756877144539,7.85,209.33,209.26,7.25]
[1756877144737,7.85,209.34,209.28,1.75408741]
[1756877145534,14.92218741,209.34,209.26,1.75408741]
[1756877147339,7.85,209.34,209.28,1.75408741]
[1756877148744,7.85,209.34,209.26,7.25]
[1756877148941,7.85,209.34,209.28,1.75408741]
[1756877150044,7.85,209.34,209.26,7.25]
[1756877150247,7.85,209.34,209.28,1.75408741]
[1756877150755,7.85,209.31,209.24,1.75408741]
[1756877151255,13.1681,209.31,209.24,1.75408741]
[1756877151856,13.1681,209.31,209.23,1.75408741]
[1756877152058,7.85,209.31,209.23,1.75408741]
[1756877152456,13.1681,209.31,209.22,7.25]
[1756877152761,7.85,209.29,209.22,7.25]
[1756877152963,7.85,209.29,209.22,9.00408741]
[1756877155561,7.85,209.29,209.22,7.25]
[1756877155762,7.85,209.29,209.22,9.00408741]
[1756877155961,7.85,209.29,209.22,7.25]
[1756877156162,7.85,209.29,209.23,1.75408741]
[1756877158457,7.85,209.29,209.25,1.75408741]
[1756877158663,7.85,209.31,209.25,1.75408741]
[1756877158862,5.3181,209.3,209.23,1.75408741]
[1756877159065,7.85,209.29,209.23,1.75408741]
[1756877159465,7.85,209.29,209.22,7.25]
[1756877159665,7.85,209.29,209.23,1.75408741]
[1756877162761,7.85,209.29,209.19,7.25]
[1756877162762,14.92218741,209.29,209.21,1.75408741]
[1756877162966,7.85,209.27,209.21,1.75408741]
[1756877169681,7.85,209.26,209.18,1.75408741]
[1756877169885,13.1681,209.26,209.18,1.75408741]
[1756877170278,1.75408741,209.25,209.17,1.75408741]
[1756877170474,1.75408741,209.25,209.14,7.25]
[1756877170475,13.1681,209.24,209.14,7.25]
[1756877170680,13.1681,209.24,209.17,1.75408741]
[1756877170978,7.85,209.24,209.17,1.75408741]
[1756877171580,7.85,209.24,209.14,7.25]
[1756877171769,7.85,209.24,209.17,1.75408741]
[1756877173683,7.85,209.24,209.16,1.75408741]
[1756877173983,13.0481,209.23,209.1,7.57]
[1756877174179,7.73,209.2,209.13,1.75408741]
[1756877175181,7.73,209.2,209.12,7.57]
[1756877175382,7.73,209.2,209.14,1.75408741]
[1756877175786,7.73,209.2,209.12,7.57]
[1756877176080,7.73,209.2,209.14,1.75408741]
[1756877176288,7.73,209.2,209.12,7.57]
[1756877176480,7.73,209.2,209.08,7.57]
[1756877176681,7.73,209.2,209.12,1.75408741]
[1756877177889,7.73,209.2,209.14,1.75408741]
[1756877178282,7.73,209.2,209.06,4.3044]
[1756877178283,7.73,209.2,209.06,7.57]
[1756877178487,9.48408741,209.2,209.12,1.75408741]
[1756877179784,9.48408741,209.2,209.11,7.57]
[1756877179989,9.48408741,209.2,209.12,1.75408741]
[1756877182493,9.48408741,209.2,209.11,7.57]
[1756877182793,9.48408741,209.2,209.11,9.32408741]
[1756877183293,7.73,209.17,209.11,1.75408741]
[1756877183492,7.73,209.17,209.08,7.57]
[1756877185086,10.47466434,209.17,209.03,7.57]
[1756877185395,10.47466434,209.17,209.04,7.57]
[1756877185396,7.73,209.16,209.04,7.57]
[1756877186293,36.79,209.16,209.04,10.31466434]
[1756877186590,7.73,209.15,209.04,10.31466434]
[1756877186793,7.73,209.15,209.05,7.57]
[1756877187494,7.73,209.15,209.05,10.31466434]
[1756877188393,7.73,209.15,209.06,7.57]
[1756877190695,7.73,209.15,209.06,10.31466434]
[1756877192194,7.73,209.15,208.98,295.35254584]
[1756877192195,7.73,209.16,209.02,7.57]
[1756877192393,7.73,209.16,209.03,2.74466434]
[1756877193399,45.65,209.16,209.03,2.74466434]
[1756877193600,78.45,209.16,209.04,7.57]
[1756877195897,111.95,209.16,209.04,10.31466434]
[1756877196099,122.24466434,209.17,209.04,10.31466434]
[1756877196400,7.73,209.16,209.04,7.57]
[1756877196599,7.73,209.16,209.04,10.31466434]
[1756877196894,122.24466434,209.17,209.04,10.31466434]
[1756877197100,7.73,209.16,209.04,10.31466434]
[1756877197501,122.24466434,209.17,209.04,10.31466434]
[1756877197696,7.73,209.16,209.04,10.31466434]
[1756877197902,122.24466434,209.17,209.04,10.31466434]
[1756877198102,7.73,209.16,209.04,10.31466434]
[1756877198397,122.24466434,209.17,209.04,10.31466434]
[1756877198799,7.73,209.16,209.04,10.31466434]
[1756877199699,119.46,209.16,209.04,10.31466434]
[1756877199897,7.73,209.15,209.04,10.31466434]
[1756877200101,119.46,209.16,209.04,10.31466434]
[1756877200297,7.73,209.15,209.04,10.31466434]
[1756877200496,119.46,209.16,209.04,10.31466434]
[1756877200697,7.73,209.15,209.05,7.57]
[1756877201605,7.73,209.15,209.05,10.31466434]
[1756877203808,7.73,209.15,209.06,7.16]
[1756877205610,7.2,209.15,209.01,2.74466434]
[1756877205807,2.74466434,209.16,209.01,9.90466434]
[1756877206008,7.2,209.15,209.01,9.90466434]
[1756877206209,2.74466434,209.16,209.01,9.90466434]
[1756877206409,7.2,209.15,209.01,9.90466434]
[1756877206816,2.74466434,209.16,209.01,9.90466434]
[1756877207216,7.2,209.15,209.01,9.90466434]
[1756877207718,2.74466434,209.16,209.01,9.90466434]
[1756877208111,7.2,209.15,209.01,7.16]
[1756877208308,7.2,209.15,209.01,9.90466434]
[1756877208514,12.5181,209.16,209.02,7.16]
[1756877208716,7.2,209.14,209.04,2.74466434]
[1756877208914,7.2,209.14,209.05,7.16]
[1756877209824,2.74466434,209.14,208.99,9.90466434]
[1756877210015,7.2,209.13,208.99,9.90466434]
[1756877210321,5.3181,209.13,208.99,9.90466434]
[1756877210617,7.2,209.12,208.99,9.90466434]
[1756877211613,5.3181,209.13,208.99,9.90466434]
[1756877211817,7.2,209.12,208.99,9.90466434]
[1756877212013,22.68,209.11,209.0,7.16]
[1756877212320,49.96,209.12,209.02,7.16]
[1756877212621,7.2,209.12,209.02,7.16]
[1756877214118,7.2,209.12,209.02,9.90466434]
[1756877214716,7.2,209.12,209.03,7.16]
[1756877215721,7.2,209.12,208.98,4.3061]
[1756877215722,7.2,209.12,209.05,7.16]
[1756877219129,5.3181,209.17,209.05,7.16]
[1756877219323,7.2,209.16,209.05,7.16]
[1756877219518,7.2,209.16,209.07,2.74466434]
[1756877219725,7.2,209.16,209.08,7.16]
[1756877220621,7.2,209.16,209.08,9.90466434]
[1756877222532,7.2,209.16,209.08,7.16]
[1756877222735,7.2,209.16,209.08,9.90466434]
[1756877223231,7.2,209.16,209.09,7.16]
[1756877223828,5.3181,209.18,209.12,7.16]
[1756877224028,7.2,209.21,209.12,7.16]
[1756877224536,7.2,209.21,209.05,4.00964627]
[1756877224537,5.3181,209.22,209.1,7.16]
[1756877224733,5.3181,209.22,209.09,4.3038]
[1756877224734,7.2,209.25,209.16,9.90466434]
[1756877225134,7.2,209.25,209.17,7.16]
[1756877225640,12.5181,209.25,209.17,7.16]
[1756877226033,7.2,209.25,209.17,7.16]
[1756877228234,7.2,209.25,209.12,7.16]
[1756877228435,2.74466434,209.27,209.12,7.16]
[1756877228436,7.2,209.23,209.12,7.16]
[1756877229228,12.5181,209.23,209.12,7.16]
[1756877229428,7.2,209.23,209.12,7.16]
[1756877232739,7.2,209.23,209.12,9.90466434]
[1756877234337,5.3181,209.24,209.12,7.16]
[1756877234643,7.93,209.21,209.09,7.54]
[1756877234937,13.2481,209.21,209.09,7.54]
[1756877235741,2.74466434,209.22,209.09,7.54]
[1756877235742,7.93,209.19,209.09,7.54]
[1756877239439,10.67466434,209.19,209.09,7.54]
[1756877239637,10.67466434,209.19,208.99,8.32603084]
[1756877239638,5.3181,209.18,209.03,2.74466434]
[1756877239838,2.74466434,209.16,209.04,7.54]
[1756877240041,7.93,209.15,209.04,7.54]
[1756877245547,1.61103292,209.12,209.04,7.54]
[1756877245747,9.54103292,209.12,209.04,7.54]
[1756877247248,7.93,209.12,209.05,1.61103292]
[1756877247547,7.93,209.12,209.06,7.54]
[1756877252448,7.93,209.1,209.04,1.61103292]
[1756877252849,7.93,209.1,209.03,9.15103292]
[1756877253750,7.93,209.1,209.03,7.54]
[1756877253944,1.61103292,209.12,209.04,1.61103292]
[1756877254153,9.54103292,209.16,209.09,7.54]
[1756877254650,9.54103292,209.16,208.97,4.01234355]
[1756877254651,7.93,209.13,209.06,1.61103292]
[1756877255246,7.93,209.13,209.07,7.54]
[1756877257852,7.93,209.11,209.04,1.61103292]
[1756877258155,7.93,209.11,209.04,9.15103292]
[1756877260451,7.93,209.11,209.04,7.54]
[1756877260652,1.61103292,209.09,209.02,1.61103292]
[1756877260859,7.93,209.08,209.02,1.61103292]
[1756877262460,7.93,209.08,209.0,7.54]
[1756877262654,7.93,209.08,209.02,1.61103292]
[1756877263255,7.93,209.08,209.0,7.54]
[1756877263452,7.93,209.08,209.01,1.61103292]
[1756877263862,7.93,209.08,209.03,1.61103292]
[1756877264057,7.18,209.12,209.05,1.61103292]
[1756877264359,1.61103292,209.13,209.04,9.35103292]
[1756877264552,7.18,209.12,209.04,9.35103292]
[1756877264756,1.61103292,209.13,209.04,9.35103292]
[1756877264757,7.18,209.1,209.04,9.35103292]
[1756877269058,8.79103292,209.14,209.06,1.61103292]
[1756877269257,7.18,209.13,209.06,7.74]
[1756877272073,14.10913292,209.16,209.08,7.74]
[1756877272377,14.10913292,209.16,209.08,9.35103292]
[1756877274575,7.18,209.15,209.08,7.74]
[1756877275778,7.18,209.15,209.08,9.35103292]
[1756877276174,12.4981,209.15,209.08,9.35103292]
[1756877276976,12.4981,209.15,209.09,1.61103292]
[1756877276977,7.18,209.15,209.09,1.61103292]
[1756877277273,7.99062439,209.19,209.12,7.74]
[1756877277274,5.3181,209.18,209.12,7.74]
[1756877277874,12.4981,209.19,209.12,7.74]
[1756877278378,12.4981,209.18,209.13,9.35103292]
[1756877280579,7.18,209.17,209.13,9.35103292]
[1756877282484,5.3181,209.18,209.02,4.3051]
[1756877282679,7.18,209.16,209.12,1.61103292]
[1756877283083,5.3181,209.17,209.12,1.61103292]
[1756877283481,7.18,209.16,209.12,1.61103292]
[1756877283686,7.18,209.16,209.12,9.35103292]
[1756877284386,7.18,209.16,209.13,7.74]
[1756877284582,7.18,209.16,209.13,9.35103292]
[1756877285087,7.18,209.16,209.13,1.61103292]
[1756877285484,7.18,209.16,209.09,7.74]
[1756877285684,5.3181,209.17,209.11,1.61103292]
[1756877285884,7.18,209.16,209.11,1.61103292]
[1756877286185,5.3181,209.17,209.11,1.61103292]
[1756877286386,7.18,209.16,209.11,1.61103292]
[1756877286587,5.3181,209.17,209.11,1.61103292]
[1756877286780,7.18,209.16,209.11,1.61103292]
[1756877286985,5.3181,209.17,209.11,1.61103292]
[1756877287784,7.18,209.16,209.11,1.61103292]
[1756877287985,5.3181,209.16,209.11,1.61103292]
[1756877288186,7.18,209.15,209.11,9.35103292]
[1756877288580,5.3181,209.17,209.14,7.74]
[1756877289086,5.3181,209.18,209.14,7.74]
[1756877289285,7.18,209.17,209.14,7.74]
[1756877289690,12.4981,209.21,209.16,7.74]
[1756877289877,12.4981,209.21,209.15,9.35103292]
[1756877290079,12.4981,209.21,209.04,4.02340389]
[1756877290080,12.4981,209.21,209.17,9.35103292]
[1756877291286,7.18,209.21,209.17,9.35103292]
[1756877291890,5.3181,209.22,209.2,7.72]
[1756877292292,5.3181,209.23,209.2,7.72]
[1756877292590,7.8,209.22,209.12,7.72]
[1756877292790,7.8,209.22,209.2,1.61103292]
[1756877294489,5.3181,209.25,209.2,1.61103292]
[1756877294690,7.8,209.24,209.2,9.33103292]
[1756877295292,5.3181,209.25,209.2,9.33103292]
[1756877295488,7.8,209.24,209.2,9.33103292]
[1756877295689,7.8,209.24,209.18,1.61103292]
[1756877295894,13.1181,209.22,209.17,1.61103292]
[1756877296190,7.8,209.21,209.18,7.72]
[1756877296586,5.3181,209.23,209.17,1.61103292]
[1756877296587,7.8,209.23,209.19,1.61103292]
[1756877297085,5.3181,209.24,209.19,1.61103292]
[1756877297285,7.8,209.23,209.19,9.33103292]
[1756877297486,7.8,209.23,209.2,7.72]
[1756877297988,5.3181,209.25,209.21,9.33103292]
[1756877298189,5.3181,209.25,209.22,7.72]
[1756877298390,7.8,209.25,209.22,7.72]
[1756877298586,13.1181,209.25,209.22,7.72]
[1756877299199,7.8,209.25,209.22,7.72]
[1756877299692,13.1181,209.23,209.17,1.61103292]
[1756877299995,7.8,209.23,209.17,1.61103292]
[1756877302298,7.8,209.23,209.2,7.72]
[1756877302797,5.3181,209.25,209.2,1.61103292]
[1756877303089,7.8,209.24,209.2,1.61103292]
[1756877303994,7.8,209.24,209.16,7.72]
[1756877304189,5.3181,209.25,209.2,1.61103292]
[1756877304396,7.8,209.24,209.2,1.61103292]
[1756877304796,5.3181,209.25,209.2,1.61103292]
[1756877304997,7.8,209.24,209.2,9.33103292]
[1756877305188,7.8,209.24,209.2,7.72]
[1756877305394,5.3181,209.25,209.19,1.61103292]
[1756877305589,7.8,209.24,209.16,10.46278566]
[1756877305899,7.8,209.24,209.16,7.72]
[1756877309700,7.8,209.24,209.16,10.46278566]
[1756877310500,7.8,209.24,209.16,7.72]
[1756877310698,7.8,209.24,209.18,2.74278566]
[1756877310894,7.8,209.24,209.18,10.46278566]
[1756877313603,7.8,209.25,209.14,10.46278566]
[1756877313799,7.8,209.23,209.14,10.46278566]
[1756877314406,7.8,209.22,209.14,10.46278566]
[1756877315303,13.1181,209.22,209.14,10.46278566]
[1756877315497,7.8,209.21,209.14,7.72]
[1756877315702,13.1181,209.21,209.14,7.72]
[1756877316504,7.8,209.21,209.14,10.46278566]
[1756877317211,5.3181,209.23,209.15,7.72]
[1756877317609,13.1181,209.24,209.16,2.74278566]
[1756877318203,13.1181,209.24,209.17,7.72]
[1756877318406,7.8,209.24,209.17,7.72]
[1756877319711,7.8,209.24,209.17,10.46278566]
[1756877320010,5.30372854,209.28,209.24,7.72]
[1756877320206,7.99062439,209.36,209.27,7.72]
[1756877320409,7.99062439,209.37,209.3,2.74278566]
[1756877320610,25.15920224,209.42,209.28,2.74278566]
[1756877320611,7.99062439,209.35,209.28,2.74278566]
[1756877321008,7.99062439,209.37,209.28,2.74278566]
[1756877321305,0.8317499,209.44,209.31,2.74278566]
[1756877321306,13.06,209.38,209.31,2.74278566]
[1756877321709,7.99062439,209.4,209.31,2.74278566]
[1756877321909,7.85,209.38,209.31,2.74278566]
[1756877323302,7.85,209.38,209.3,7.8]
[1756877323509,7.85,209.38,209.31,2.74278566]
[1756877323908,7.85,209.38,209.3,7.8]
[1756877324113,7.85,209.38,209.31,2.74278566]
[1756877325613,7.85,209.38,209.3,10.54278566]
[1756877327016,108.02,209.39,209.33,2.74278566]
[1756877327410,7.85,209.4,209.33,2.74278566]
[1756877329007,7.85,209.4,209.31,7.8]
[1756877329304,7.85,209.4,209.32,2.74278566]
[1756877329507,7.85,209.4,209.24,7.8]
[1756877329712,7.85,209.4,209.3,2.74278566]
[1756877330614,7.85,209.4,209.31,2.74278566]
[1756877331508,7.85,209.4,209.33,2.74278566]
[1756877332612,7.85,209.4,209.3,10.54278566]
[1756877333213,77.82,209.39,209.3,10.54278566]
[1756877333417,7.85,209.38,209.3,10.54278566]
[1756877336720,98.9,209.39,209.3,10.54278566]
[1756877337023,2.74278566,209.36,209.25,2.74278566]
[1756877337226,7.85,209.35,209.25,2.74278566]
[1756877337523,2.74278566,209.36,209.23,10.54278566]
[1756877338026,7.85,209.35,209.23,10.54278566]
[1756877338519,2.74278566,209.36,209.23,10.54278566]
[1756877338826,7.85,209.33,209.23,10.54278566]
[1756877340622,7.85,209.33,209.24,2.74278566]
[1756877340829,7.85,209.33,209.25,7.8]
[1756877342728,7.85,209.38,209.28,7.8]
[1756877343031,127.25,209.38,209.28,7.8]
[1756877343327,7.85,209.38,209.3,2.74278566]
[1756877343531,7.85,209.38,209.31,7.8]
[1756877343732,7.85,209.38,209.26,10.54278566]
[1756877343932,297.18278566,209.39,209.26,10.54278566]
[1756877344122,7.85,209.38,209.26,10.54278566]
[1756877344528,119.48,209.37,209.26,7.8]
[1756877344722,119.46,209.36,209.27,2.74278566]
[1756877345526,7.85,209.35,209.26,7.8]
[1756877346823,119.46,209.34,209.26,7.8]
[1756877347631,119.46,209.34,209.27,2.74278566]
[1756877348130,127.29,209.35,209.27,2.74278566]
[1756877348531,302.29,209.39,209.28,7.8]
[1756877348733,119.38,209.38,209.31,7.8]
[1756877349535,7.85,209.37,209.3,2.74278566]
[1756877350032,119.4,209.36,209.3,2.74278566]
[1756877351734,7.85,209.37,209.3,2.74278566]
[1756877352039,119.34,209.36,209.3,7.28]
[1756877352639,7.25,209.35,209.27,2.74278566]
[1756877352840,7.25,209.35,209.26,7.28]
[1756877353735,119.38,209.34,209.26,7.28]
[1756877353931,119.38,209.34,209.27,4.46757034]
[1756877354132,7.25,209.35,209.26,7.28]
[1756877354332,126.69,209.35,209.29,7.28]
[1756877354533,7.25,209.35,209.29,7.28]
[1756877354737,7.25,209.35,209.29,10.02278566]
[1756877355533,7.25,209.35,209.29,7.28]
[1756877357843,301.69,209.39,209.29,7.28]
[1756877358045,119.34,209.38,209.29,7.28]
[1756877358439,119.34,209.37,209.29,7.28]
[1756877359038,119.32,209.37,209.3,4.47164886]
[1756877359233,119.32,209.37,209.29,7.28]
[1756877359441,7.25,209.36,209.3,4.47306825]
[1756877359640,7.25,209.36,209.25,7.28]
[1756877359843,15.28189454,209.36,209.26,4.47361862]
[1756877360047,15.28189454,209.36,209.25,7.28]
[1756877360245,15.28189454,209.36,209.26,4.47577098]
[1756877360539,15.28189454,209.36,209.25,7.28]
[1756877360745,7.25,209.34,209.25,7.28]
[1756877361240,12.53910888,209.34,209.26,4.47935361]
[1756877361544,12.53910888,209.34,209.25,7.28]
[1756877362146,12.53910888,209.34,209.26,4.48241783]
[1756877362346,124.62910888,209.33,209.25,7.28]
[1756877362645,119.34,209.32,209.26,4.48252116]
[1756877362847,5.28910888,209.33,209.25,7.28]
[1756877363046,5.28910888,209.33,209.26,4.48252116]
[1756877363248,32.20910888,209.32,209.25,7.28]
[1756877363448,32.20910888,209.32,209.26,4.48530297]
[1756877363649,32.20910888,209.32,209.25,7.28]
[1756877363849,39.45910888,209.32,209.26,4.48530297]
[1756877364047,12.53910888,209.32,209.25,7.28]
[1756877364246,12.53910888,209.32,209.26,4.48515941]
[1756877364247,7.25,209.3,209.26,4.48515941]
[1756877364446,7.25,209.3,209.27,4.48515941]
[1756877364649,7.25,209.3,209.25,7.28]
[1756877364857,7.25,209.3,209.26,4.48748535]
[1756877365054,7.25,209.3,209.27,4.48748535]
[1756877365247,7.25,209.3,209.23,2.74278566]
[1756877365453,44.68,209.32,209.25,7.28]
[1756877365755,44.68,209.32,209.26,4.48714185]
[1756877365944,44.68,209.32,209.28,7.28]
[1756877366146,90.31910888,209.33,209.28,7.28]
[1756877366455,7.25,209.32,209.26,2.74278566]
[1756877366659,90.31910888,209.33,209.27,4.48696587]
[1756877366857,90.31910888,209.33,209.26,2.74278566]
[1756877367056,90.31910888,209.33,209.27,4.48696587]
[1756877367254,83.06910888,209.33,209.28,4.48696587]
[1756877367450,7.25,209.32,209.27,1.75396374]
[1756877367657,7.25,209.32,209.28,4.48680585]
[1756877367857,7.25,209.32,209.27,9.03396374]
[1756877368153,83.06910888,209.33,209.28,4.48680531]
[1756877368353,90.31910888,209.33,209.27,9.03396374]
[1756877368654,7.25,209.32,209.28,4.4866835]
[1756877368853,7.25,209.32,209.27,9.03396374]
[1756877368854,7.25,209.32,209.29,1.75396374]
[1756877369054,7.25,209.34,209.31,1.75396374]
[1756877369252,7.25,209.34,209.32,4.48591375]
[1756877369452,7.25,209.34,209.29,7.28]
[1756877369654,7.25,209.36,209.31,1.75396374]
[1756877369849,7.25,209.36,209.32,4.48594383]
[1756877370054,117.06910888,209.37,209.31,1.75396374]
[1756877370257,117.06910888,209.37,209.32,4.48578605]
[1756877370559,5.28910888,209.35,209.29,1.75396374]
[1756877370759,7.25,209.32,209.23,7.28]
[1756877370962,7.25,209.32,209.26,1.75396374]
[1756877371160,7.25,209.32,209.27,4.48643041]
[1756877371362,7.25,209.32,209.26,1.75396374]
[1756877371660,7.04307262,209.33,209.27,4.465772]
[1756877371861,12.53910888,209.32,209.26,1.75396374]
[1756877372556,9.00396374,209.31,209.18,7.28]
[1756877372761,12.53910888,209.29,209.19,4.46574197]
[1756877372959,7.25,209.29,209.2,4.46574197]
[1756877373161,12.53910888,209.29,209.21,6.21970571]
[1756877373458,12.53910888,209.29,209.22,4.46574197]
[1756877373459,14.29307262,209.29,209.22,4.46574197]
[1756877373656,7.25,209.26,209.18,9.03396374]
[1756877373856,7.25,209.26,209.19,4.46570904]
[1756877374060,7.25,209.26,209.2,4.46570904]
[1756877374259,7.25,209.26,209.21,4.46570904]
[1756877374555,7.25,209.26,209.18,9.03396374]
[1756877374761,7.25,209.26,209.19,4.46405912]
[1756877375060,7.25,209.26,209.2,4.46405912]
[1756877375261,7.25,209.26,209.18,9.03396374]
[1756877375562,7.25,209.26,209.19,4.4695849]
[1756877375766,7.25,209.26,209.2,4.4695849]
[1756877375962,7.25,209.26,209.18,9.03396374]
[1756877376161,7.25,209.26,209.19,4.4695849]
[1756877376365,7.25,209.26,209.2,4.4695849]
[1756877376563,7.25,209.26,209.18,9.03396374]
[1756877376761,7.25,209.26,209.19,4.46839268]
[1756877377061,7.25,209.26,209.2,4.46839268]
[1756877377266,7.25,209.26,209.18,9.03396374]
[1756877377562,7.25,209.26,209.19,4.46746311]
[1756877377860,7.25,209.26,209.2,4.46746311]
[1756877378062,7.25,209.26,209.18,9.03396374]
[1756877378257,7.25,209.26,209.19,4.46658462]
[1756877378464,7.25,209.26,209.2,6.22054836]
[1756877378659,7.25,209.26,209.21,11.74658462]
[1756877378964,7.25,209.26,209.21,7.28]
[1756877379364,7.25,209.26,209.2,9.03396374]
[1756877379563,23.92,209.28,209.2,9.03396374]
[1756877379564,7.25,209.27,209.21,4.46583261]
[1756877379765,7.25,209.27,209.2,1.75396374]
[1756877380665,7.25,209.27,209.19,9.03396374]
[1756877380866,7.25,209.27,209.2,4.4653944]
[1756877381066,7.25,209.27,209.19,9.03396374]
[1756877381269,7.25,209.27,209.2,4.46487125]
[1756877381469,7.25,209.27,209.19,9.03396374]
[1756877381668,7.25,209.27,209.2,4.46487125]
[1756877381870,7.25,209.27,209.19,9.03396374]
[1756877382069,7.25,209.27,209.2,4.46474729]
[1756877382270,7.25,209.27,209.19,9.03396374]
[1756877382471,1.75396374,209.26,209.2,4.46418704]
[1756877382675,1.75396374,209.26,209.19,9.03396374]
[1756877382969,1.75396374,209.26,209.2,4.46418704]
[1756877383170,1.75396374,209.26,209.19,9.03396374]
[1756877383365,1.75396374,209.26,209.2,4.46370386]
[1756877383562,1.75396374,209.26,209.19,9.03396374]
[1756877383770,1.75396374,209.26,209.2,4.46372432]
[1756877383967,1.75396374,209.26,209.19,9.03396374]
[1756877384166,1.75396374,209.26,209.2,4.46372432]
[1756877384368,1.75396374,209.26,209.19,9.03396374]
[1756877384565,1.75396374,209.26,209.2,4.46316859]
[1756877384769,1.75396374,209.26,209.19,9.03396374]
[1756877384975,1.75396374,209.26,209.2,4.46316859]
[1756877385270,1.75396374,209.26,209.19,9.03396374]
[1756877385473,1.75396374,209.26,209.2,4.46290207]
[1756877385772,1.75396374,209.26,209.19,7.28]
[1756877389075,7.25,209.27,209.21,7.58]
[1756877392078,5.28910888,209.3,209.23,7.58]
[1756877392285,9.46396374,209.31,209.24,1.75396374]
[1756877392482,14.75307262,209.31,209.24,1.75396374]
[1756877392881,14.75307262,209.31,209.23,7.58]
[1756877393279,5.28910888,209.3,209.23,7.58]
[1756877393480,7.71,209.29,209.23,7.58]
[1756877393881,9.46396374,209.29,209.23,7.58]
[1756877394584,7.71,209.29,209.23,7.58]
[1756877397180,1.75396374,209.28,209.2,7.58]
[1756877397385,1.75396374,209.26,209.2,7.58]
[1756877398387,1.75396374,209.26,209.1,37.1035]
[1756877398388,7.71,209.25,209.17,9.33396374]